Workbook

Sheet 1
A1: Школа | B1: МБОУ СОШ № 11 | I1: День | J1: 2022-09-16
A3: Прием пищи | B3: Раздел | C3: № рец. | D3: Блюдо | E3: Выход, г | F3: Цена | G3: Калорийность | H3: Белки | I3: Жиры | J3: Углеводы
A4: Завтрак | B4: гор.блюдо | D4: ='[1]Меню младшие 1-4 кл Осень-Зима'!B200 -> Помидоры свежие порционно | E4: ='[1]Меню младшие 1-4 кл Осень-Зима'!C200 -> 60 | G4: ='[1]Меню младшие 1-4 кл Осень-Зима'!G200 -> 13.20 | H4: ='[1]Меню младшие 1-4 кл Осень-Зима'!D200 -> 0.66 | I4: ='[1]Меню младшие 1-4 кл Осень-Зима'!E200 -> 0.12 | J4: ='[1]Меню младшие 1-4 кл Осень-Зима'!F200 -> 2.28
B5: гор.напиток | D5: ='[1]Меню младшие 1-4 кл Осень-Зима'!B201 -> Фрикадельки в сметанно-томатном соусе | E5: ='[1]Меню младшие 1-4 кл Осень-Зима'!C201 -> 55/50 | G5: ='[1]Меню младшие 1-4 кл Осень-Зима'!G201 -> 180.00 | H5: ='[1]Меню младшие 1-4 кл Осень-Зима'!D201 -> 8.50 | I5: ='[1]Меню младшие 1-4 кл Осень-Зима'!E201 -> 11.21 | J5: ='[1]Меню младшие 1-4 кл Осень-Зима'!F201 -> 10.61
B6: хлеб | D6: ='[1]Меню младшие 1-4 кл Осень-Зима'!B202 -> Каша гречневая рассыпчатая с маслом сливочным | E6: ='[1]Меню младшие 1-4 кл Осень-Зима'!C202 -> 150/5 | G6: ='[1]Меню младшие 1-4 кл Осень-Зима'!G202 -> 276.75 | H6: ='[1]Меню младшие 1-4 кл Осень-Зима'!D202 -> 8.21 | I6: ='[1]Меню младшие 1-4 кл Осень-Зима'!E202 -> 8.72 | J6: ='[1]Меню младшие 1-4 кл Осень-Зима'!F202 -> 38.71
D7: ='[1]Меню младшие 1-4 кл Осень-Зима'!B203 -> Чай с сахаром,с яблоком | E7: ='[1]Меню младшие 1-4 кл Осень-Зима'!C203 -> 180/10/10 | G7: ='[1]Меню младшие 1-4 кл Осень-Зима'!G203 -> 45 | H7: ='[1]Меню младшие 1-4 кл Осень-Зима'!D203 -> 0.11 | I7: ='[1]Меню младшие 1-4 кл Осень-Зима'!E203 -> 0.06 | J7: ='[1]Меню младшие 1-4 кл Осень-Зима'!F203 -> 10.99
D8: ='[1]Меню младшие 1-4 кл Осень-Зима'!B204 -> Хлеб пшеничный | E8: ='[1]Меню младшие 1-4 кл Осень-Зима'!C204 -> 25 | G8: ='[1]Меню младшие 1-4 кл Осень-Зима'!G204 -> 59 | H8: ='[1]Меню младшие 1-4 кл Осень-Зима'!D204 -> 1.90 | I8: ='[1]Меню младшие 1-4 кл Осень-Зима'!E204 -> 0.20 | J8: ='[1]Меню младшие 1-4 кл Осень-Зима'!F204 -> 12.30
D9: ='[1]Меню младшие 1-4 кл Осень-Зима'!B205 -> Хлеб ржаной | E9: ='[1]Меню младшие 1-4 кл Осень-Зима'!C205 -> 20 | G9: ='[1]Меню младшие 1-4 кл Осень-Зима'!G205 -> 40 | H9: ='[1]Меню младшие 1-4 кл Осень-Зима'!D205 -> 1.32 | I9: ='[1]Меню младшие 1-4 кл Осень-Зима'!E205 -> 0.24 | J9: ='[1]Меню младшие 1-4 кл Осень-Зима'!F205 -> 7.92
A10: Завтрак 2 | B10: фрукты | D10: Батон с маслом | E10: 30/10 | G10: 144.6 | H10: 2.33 | I10: 8.12 | J10: 15.6
D11: Чай сахаром и яблоками | E11: 180/10/10 | G11: 44.68 | H11: 0.11 | I11: 0.06 | J11: 10.97
A12: Обед
